[Event "Titled Tuesday Blitz May 4 2021"]
[White "Karacsonyi, Gellert"]
[Black "Vasquez Schroeder, Rodrigo"]
[WhiteFideId "764620"]
[BlackFideId "3400042"]
[WhiteElo "2192"]
[BlackElo "2572"]
[Result "0-1"]
[Round "03"]
[TimeControl "180+1"]
[Date "2021.05.04"]
[WhiteClock "0:00:18"]
[BlackClock "0:00:23"]

1. e4 {[%clk 0:03:00]}  c5 {[%clk 0:02:59]} 2. Nf3 {[%clk 0:03:00]}  d6 {[%clk 0:02:59]} 3. d4 {[%clk 0:03:01]}  cxd4 {[%clk 0:02:59]} 4. Nxd4 {[%clk 0:03:02]}  Nf6 {[%clk 0:02:59]} 5. Nc3 {[%clk 0:03:02]}  a6 {[%clk 0:03:00]} 6. Bc4 {[%clk 0:03:03]}  e6 {[%clk 0:03:00]} 7. O-O {[%clk 0:03:03]}  b5 {[%clk 0:03:00]} 8. Bb3 {[%clk 0:03:03]}  Be7 {[%clk 0:03:00]} 9. Qf3 {[%clk 0:03:03]}  Qb6 {[%clk 0:03:00]} 10. Be3 {[%clk 0:03:03]}  Qb7 {[%clk 0:03:00]} 11. Qg3 {[%clk 0:03:03]}  Nbd7 {[%clk 0:03:00]} 12. f3 {[%clk 0:03:04]}  Nc5 {[%clk 0:03:00]} 13. Qxg7 {[%clk 0:02:58]}  Rg8 {[%clk 0:03:00]} 14. Qh6 {[%clk 0:02:58]}  Bd7 {[%clk 0:02:56]} 15. Bf2 {[%clk 0:02:45]}  O-O-O {[%clk 0:02:52]} 16. a4 {[%clk 0:02:41]}  b4 {[%clk 0:02:51]} 17. Nce2 {[%clk 0:02:42]}  Rg6 {[%clk 0:02:50]} 18. Qd2 {[%clk 0:02:39]}  Rdg8 {[%clk 0:02:46]} 19. Kh1 {[%clk 0:02:40]}  Rxg2 {[%clk 0:02:30]} 20. Ng3 {[%clk 0:02:28]}  Ncxe4 {[%clk 0:02:29]} 21. Qd3 {[%clk 0:01:59]}  Nxf2+ {[%clk 0:02:02]} 22. Rxf2 {[%clk 0:01:59]}  Rxf2 {[%clk 0:02:01]} 23. Kg1 {[%clk 0:02:00]}  Ng4 {[%clk 0:01:39]} 24. Bc4 {[%clk 0:01:57]}  Ne5 {[%clk 0:01:35]} 25. Qxh7 {[%clk 0:01:35]}  Rxg3+ {[%clk 0:01:20]} 26. hxg3 {[%clk 0:01:34]}  Rxf3 {[%clk 0:01:13]} 27. Nxf3 {[%clk 0:01:22]}  Qxf3 {[%clk 0:01:06]} 28. Bxa6+ {[%clk 0:01:21]}  Kc7 {[%clk 0:01:06]} 29. Qh2 {[%clk 0:01:15]}  d5 {[%clk 0:00:57]} 30. Qf2 {[%clk 0:01:06]}  Qxf2+ {[%clk 0:00:54]} 31. Kxf2 {[%clk 0:01:07]}  Bc5+ {[%clk 0:00:55]} 32. Ke2 {[%clk 0:01:04]}  f5 {[%clk 0:00:54]} 33. Bb5 {[%clk 0:01:02]}  Bc8 {[%clk 0:00:43]} 34. a5 {[%clk 0:01:01]}  Nc6 {[%clk 0:00:43]} 35. c3 {[%clk 0:00:58]}  bxc3 {[%clk 0:00:43]} 36. bxc3 {[%clk 0:00:58]}  d4 {[%clk 0:00:41]} 37. Bxc6 {[%clk 0:00:46]}  Kxc6 {[%clk 0:00:41]} 38. a6 {[%clk 0:00:43]}  Ba7 {[%clk 0:00:36]} 39. cxd4 {[%clk 0:00:43]}  Kb5 {[%clk 0:00:35]} 40. Kd3 {[%clk 0:00:30]}  Bxa6 {[%clk 0:00:35]} 41. Re1 {[%clk 0:00:25]}  Kc6+ {[%clk 0:00:35]} 42. Kc3 {[%clk 0:00:23]}  Bc8 {[%clk 0:00:33]} 43. g4 {[%clk 0:00:19]}  fxg4 {[%clk 0:00:25]} 44. Rg1 {[%clk 0:00:20]}  e5 {[%clk 0:00:25]} 45. Rxg4 {[%clk 0:00:20]}  Bxg4 {[%clk 0:00:23]} 46. dxe5 {[%clk 0:00:18]}  Kd5 {[%clk 0:00:23]} 0-1


[Site "https://www.chess.com"]

[Event "Titled Tuesday Blitz May 4 2021"]
[White "Karttunen, Mika"]
[Black "Dogan, Mire Deniz"]
[WhiteFideId "502081"]
[BlackFideId "6317456"]
[WhiteElo "2343"]
[BlackElo "1850"]
[Result "1-0"]
[Round "03"]
[TimeControl "180+1"]
[Date "2021.05.04"]
[WhiteClock "0:00:24"]
[BlackClock "0:00:06"]

1. e4 {[%clk 0:03:00]}  e6 {[%clk 0:02:59]} 2. d4 {[%clk 0:02:59]}  d5 {[%clk 0:03:00]} 3. Nc3 {[%clk 0:02:58]}  dxe4 {[%clk 0:02:59]} 4. Nxe4 {[%clk 0:02:57]}  Nd7 {[%clk 0:03:00]} 5. Nf3 {[%clk 0:02:56]}  Ngf6 {[%clk 0:03:01]} 6. Bd3 {[%clk 0:02:53]}  Nxe4 {[%clk 0:02:54]} 7. Bxe4 {[%clk 0:02:51]}  Nf6 {[%clk 0:02:55]} 8. Bg5 {[%clk 0:02:45]}  Be7 {[%clk 0:02:55]} 9. Bxf6 {[%clk 0:02:43]}  Bxf6 {[%clk 0:02:54]} 10. c3 {[%clk 0:02:36]}  Rb8 {[%clk 0:02:43]} 11. Qa4+ {[%clk 0:02:04]}  Qd7 {[%clk 0:02:04]} 12. Qxa7 {[%clk 0:01:59]}  Qb5 {[%clk 0:01:47]} 13. Qa3 {[%clk 0:01:57]}  Be7 {[%clk 0:01:22]} 14. Qb3 {[%clk 0:01:55]}  Qa6 {[%clk 0:01:22]} 15. a4 {[%clk 0:01:46]}  Bd7 {[%clk 0:01:17]} 16. Ne5 {[%clk 0:01:43]}  f6 {[%clk 0:00:51]} 17. Bd3 {[%clk 0:01:26]}  Qd6 {[%clk 0:00:42]} 18. Nxd7 {[%clk 0:01:25]}  Qxd7 {[%clk 0:00:42]} 19. Bc4 {[%clk 0:01:04]}  Kf7 {[%clk 0:00:26]} 20. O-O {[%clk 0:01:02]}  Rhe8 {[%clk 0:00:25]} 21. Rfe1 {[%clk 0:01:00]}  Bd6 {[%clk 0:00:26]} 22. Re3 {[%clk 0:00:54]}  Re7 {[%clk 0:00:26]} 23. Rae1 {[%clk 0:00:52]}  Rbe8 {[%clk 0:00:27]} 24. Qxb7 {[%clk 0:00:43]}  Qxa4 {[%clk 0:00:26]} 25. Bb5 {[%clk 0:00:42]}  Qa8 {[%clk 0:00:24]} 26. Bxe8+ {[%clk 0:00:40]}  Qxe8 {[%clk 0:00:22]} 27. Qf3 {[%clk 0:00:32]}  Qb5 {[%clk 0:00:20]} 28. b4 {[%clk 0:00:31]}  Qc4 {[%clk 0:00:20]} 29. g3 {[%clk 0:00:31]}  c6 {[%clk 0:00:20]} 30. h4 {[%clk 0:00:30]}  g6 {[%clk 0:00:20]} 31. Qe2 {[%clk 0:00:30]}  Qd5 {[%clk 0:00:20]} 32. Re4 {[%clk 0:00:29]}  f5 {[%clk 0:00:19]} 33. Re3 {[%clk 0:00:29]}  Kf6 {[%clk 0:00:18]} 34. Qf3 {[%clk 0:00:26]}  Qc4 {[%clk 0:00:19]} 35. Qe2 {[%clk 0:00:26]}  Qd5 {[%clk 0:00:19]} 36. Qd3 {[%clk 0:00:26]}  Kf7 {[%clk 0:00:14]} 37. c4 {[%clk 0:00:26]}  f4 {[%clk 0:00:05]} 38. cxd5 {[%clk 0:00:25]}  fxe3 {[%clk 0:00:05]} 39. dxe6+ {[%clk 0:00:24]}  Rxe6 {[%clk 0:00:05]} 40. Rxe3 {[%clk 0:00:25]}  Rf6 {[%clk 0:00:05]} 41. Rf3 {[%clk 0:00:24]}  Kg7 {[%clk 0:00:05]} 42. Rxf6 {[%clk 0:00:24]}  Kxf6 {[%clk 0:00:06]} 43. Qf3+ {[%clk 0:00:24]} 1-0


[Site "https://www.chess.com"]

[Event "Titled Tuesday Blitz May 4 2021"]
[White "Kaufman, Raymond"]
[Black "Sargsyan, Anna M."]
[WhiteFideId "2015056"]
[BlackFideId "13308130"]
[WhiteElo "2321"]
[BlackElo "2263"]
[Result "0-1"]
[Round "03"]
[TimeControl "180+1"]
[Date "2021.05.04"]
[WhiteClock "0:00:07"]
[BlackClock "0:00:08"]

1. d4 {[%clk 0:03:00]}  d5 {[%clk 0:02:59]} 2. Bf4 {[%clk 0:02:56]}  Nf6 {[%clk 0:02:59]} 3. e3 {[%clk 0:02:57]}  c5 {[%clk 0:02:59]} 4. Nd2 {[%clk 0:02:50]}  Nc6 {[%clk 0:03:00]} 5. c3 {[%clk 0:02:48]}  Bg4 {[%clk 0:03:00]} 6. Ngf3 {[%clk 0:02:37]}  e6 {[%clk 0:02:59]} 7. Qa4 {[%clk 0:02:37]}  Nd7 {[%clk 0:02:55]} 8. h3 {[%clk 0:02:34]}  Bh5 {[%clk 0:02:52]} 9. Bb5 {[%clk 0:02:34]}  Qb6 {[%clk 0:02:45]} 10. O-O {[%clk 0:02:22]}  a6 {[%clk 0:02:43]} 11. Bd3 {[%clk 0:02:02]}  c4 {[%clk 0:02:39]} 12. Bc2 {[%clk 0:02:02]}  Qd8 {[%clk 0:01:37]} 13. Bd1 {[%clk 0:01:57]}  b5 {[%clk 0:01:36]} 14. Qc2 {[%clk 0:01:57]}  Bg6 {[%clk 0:01:34]} 15. Qc1 {[%clk 0:01:57]}  b4 {[%clk 0:01:27]} 16. Bc2 {[%clk 0:01:53]}  bxc3 {[%clk 0:01:22]} 17. bxc3 {[%clk 0:01:53]}  Be7 {[%clk 0:01:18]} 18. Bxg6 {[%clk 0:01:48]}  hxg6 {[%clk 0:01:19]} 19. e4 {[%clk 0:01:48]}  O-O {[%clk 0:01:18]} 20. Re1 {[%clk 0:01:46]}  Nb6 {[%clk 0:01:14]} 21. Qc2 {[%clk 0:01:40]}  a5 {[%clk 0:01:08]} 22. exd5 {[%clk 0:01:35]}  exd5 {[%clk 0:01:07]} 23. Rab1 {[%clk 0:01:23]}  a4 {[%clk 0:01:03]} 24. Rb5 {[%clk 0:01:15]}  a3 {[%clk 0:00:56]} 25. Reb1 {[%clk 0:01:13]}  Na4 {[%clk 0:00:55]} 26. Nf1 {[%clk 0:01:04]}  Bf6 {[%clk 0:00:39]} 27. Ne3 {[%clk 0:01:01]}  Ne7 {[%clk 0:00:39]} 28. Rb7 {[%clk 0:00:55]}  Qa5 {[%clk 0:00:38]} 29. Ng4 {[%clk 0:00:46]}  Qxc3 {[%clk 0:00:18]} 30. Qe2 {[%clk 0:00:30]}  Nf5 {[%clk 0:00:16]} 31. Be5 {[%clk 0:00:25]}  Bxe5 {[%clk 0:00:11]} 32. Qxe5 {[%clk 0:00:23]}  Qd3 {[%clk 0:00:08]} 33. Qxd5 {[%clk 0:00:18]}  Nc3 {[%clk 0:00:08]} 34. Qe5 {[%clk 0:00:15]}  Nxb1 {[%clk 0:00:08]} 35. Ng5 {[%clk 0:00:12]}  Rae8 {[%clk 0:00:07]} 36. Qd5 {[%clk 0:00:06]}  Re1+ {[%clk 0:00:07]} 37. Kh2 {[%clk 0:00:07]}  Qf1 {[%clk 0:00:08]} 0-1


[Site "https://www.chess.com"]

[Event "Titled Tuesday Blitz May 4 2021"]
[White "Kjartansson, David"]
[Black "Sadhwani, Raunak"]
[WhiteFideId "2301130"]
[BlackFideId "35093487"]
[WhiteElo "2292"]
[BlackElo "2514"]
[Result "0-1"]
[Round "03"]
[TimeControl "180+1"]
[Date "2021.05.04"]
[WhiteClock "0:00:01"]
[BlackClock "0:00:12"]

1. d4 {[%clk 0:02:57]}  d6 {[%clk 0:03:00]} 2. c4 {[%clk 0:02:55]}  g6 {[%clk 0:02:59]} 3. Nf3 {[%clk 0:02:54]}  Bg7 {[%clk 0:03:00]} 4. g3 {[%clk 0:02:55]}  Bd7 {[%clk 0:02:57]} 5. Bg2 {[%clk 0:02:54]}  Qc8 {[%clk 0:02:58]} 6. h4 {[%clk 0:02:51]}  Nf6 {[%clk 0:02:57]} 7. Nc3 {[%clk 0:02:50]}  O-O {[%clk 0:02:55]} 8. O-O {[%clk 0:02:48]}  Bh3 {[%clk 0:02:55]} 9. b4 {[%clk 0:02:38]}  Bxg2 {[%clk 0:02:53]} 10. Kxg2 {[%clk 0:02:39]}  a5 {[%clk 0:02:52]} 11. b5 {[%clk 0:02:39]}  c6 {[%clk 0:02:52]} 12. Qd3 {[%clk 0:02:37]}  a4 {[%clk 0:02:40]} 13. Ba3 {[%clk 0:02:22]}  Nbd7 {[%clk 0:02:39]} 14. Rac1 {[%clk 0:02:20]}  Rd8 {[%clk 0:02:32]} 15. Rfd1 {[%clk 0:02:18]}  Qc7 {[%clk 0:02:28]} 16. Qe3 {[%clk 0:02:01]}  Nf8 {[%clk 0:02:26]} 17. Qd3 {[%clk 0:01:44]}  h6 {[%clk 0:01:52]} 18. e4 {[%clk 0:01:44]}  Ng4 {[%clk 0:01:46]} 19. Qe2 {[%clk 0:01:38]}  h5 {[%clk 0:01:45]} 20. Ng5 {[%clk 0:01:20]}  e5 {[%clk 0:01:27]} 21. d5 {[%clk 0:01:09]}  c5 {[%clk 0:01:21]} 22. f3 {[%clk 0:00:57]}  Nh6 {[%clk 0:01:18]} 23. Nh3 {[%clk 0:00:55]}  f6 {[%clk 0:01:14]} 24. Nf2 {[%clk 0:00:54]}  Nf7 {[%clk 0:01:12]} 25. Rb1 {[%clk 0:00:52]}  Qe7 {[%clk 0:01:11]} 26. Qc2 {[%clk 0:00:46]}  Nd7 {[%clk 0:01:02]} 27. Bc1 {[%clk 0:00:37]}  a3 {[%clk 0:00:57]} 28. Rb3 {[%clk 0:00:34]}  Bh6 {[%clk 0:00:56]} 29. Bxa3 {[%clk 0:00:31]}  Kh7 {[%clk 0:00:50]} 30. Bc1 {[%clk 0:00:28]}  Rg8 {[%clk 0:00:50]} 31. Bxh6 {[%clk 0:00:27]}  Nxh6 {[%clk 0:00:51]} 32. Kf1 {[%clk 0:00:22]}  g5 {[%clk 0:00:51]} 33. hxg5 {[%clk 0:00:22]}  Rxg5 {[%clk 0:00:52]} 34. Ke2 {[%clk 0:00:22]}  Rxg3 {[%clk 0:00:52]} 35. Rh1 {[%clk 0:00:21]}  Qf7 {[%clk 0:00:52]} 36. a4 {[%clk 0:00:18]}  Qg6 {[%clk 0:00:46]} 37. Rbb1 {[%clk 0:00:17]}  Rg2 {[%clk 0:00:43]} 38. Nd1 {[%clk 0:00:14]}  f5 {[%clk 0:00:36]} 39. Ne3 {[%clk 0:00:13]}  Rxf2+ {[%clk 0:00:16]} 40. Kxf2 {[%clk 0:00:13]}  f4 {[%clk 0:00:17]} 41. Nf1 {[%clk 0:00:12]}  Rg8 {[%clk 0:00:16]} 42. Ke1 {[%clk 0:00:11]}  b6 {[%clk 0:00:15]} 43. Qh2 {[%clk 0:00:09]}  Nf6 {[%clk 0:00:15]} 44. a5 {[%clk 0:00:09]}  bxa5 {[%clk 0:00:16]} 45. b6 {[%clk 0:00:10]}  Nf7 {[%clk 0:00:16]} 46. b7 {[%clk 0:00:10]}  Ng5 {[%clk 0:00:16]} 47. Qf2 {[%clk 0:00:08]}  Ngxe4 {[%clk 0:00:14]} 48. fxe4 {[%clk 0:00:07]}  Qxe4+ {[%clk 0:00:15]} 49. Kd2 {[%clk 0:00:06]}  Qxb1 {[%clk 0:00:15]} 50. Qe2 {[%clk 0:00:01]}  Qxb7 {[%clk 0:00:12]} 0-1


[Site "https://www.chess.com"]

[Event "Titled Tuesday Blitz May 4 2021"]
[White "Korchmar, Vasiliy"]
[Black "Gaboyan, Susanna"]
[WhiteFideId "24131750"]
[BlackFideId "13303627"]
[WhiteElo "2370"]
[BlackElo "2135"]
[Result "1-0"]
[Round "03"]
[TimeControl "180+1"]
[Date "2021.05.04"]
[WhiteClock "0:02:11"]
[BlackClock "0:01:26"]

1. d4 {[%clk 0:03:00]}  Nf6 {[%clk 0:02:57]} 2. Nf3 {[%clk 0:03:00]}  d5 {[%clk 0:02:56]} 3. Bf4 {[%clk 0:03:00]}  g6 {[%clk 0:02:55]} 4. e3 {[%clk 0:02:58]}  Bg7 {[%clk 0:02:50]} 5. Nbd2 {[%clk 0:02:59]}  O-O {[%clk 0:02:51]} 6. Be2 {[%clk 0:02:49]}  c5 {[%clk 0:02:51]} 7. c3 {[%clk 0:02:49]}  Nc6 {[%clk 0:02:52]} 8. dxc5 {[%clk 0:02:49]}  Ne4 {[%clk 0:02:51]} 9. Nxe4 {[%clk 0:02:48]}  dxe4 {[%clk 0:02:52]} 10. Ng5 {[%clk 0:02:43]}  e5 {[%clk 0:02:45]} 11. Qxd8 {[%clk 0:02:42]}  Rxd8 {[%clk 0:02:46]} 12. Bg3 {[%clk 0:02:43]}  f5 {[%clk 0:02:42]} 13. Bc4+ {[%clk 0:02:41]}  Kf8 {[%clk 0:02:41]} 14. Nxh7+ {[%clk 0:02:41]}  Ke8 {[%clk 0:02:41]} 15. Bh4 {[%clk 0:02:38]}  Rd7 {[%clk 0:02:15]} 16. Nf6+ {[%clk 0:02:37]}  Bxf6 {[%clk 0:02:14]} 17. Bxf6 {[%clk 0:02:38]}  b6 {[%clk 0:02:05]} 18. cxb6 {[%clk 0:02:32]}  axb6 {[%clk 0:02:06]} 19. Bb5 {[%clk 0:02:27]}  Bb7 {[%clk 0:01:54]} 20. h4 {[%clk 0:02:21]}  Ra5 {[%clk 0:01:47]} 21. a4 {[%clk 0:02:20]}  Kf8 {[%clk 0:01:33]} 22. h5 {[%clk 0:02:19]}  Kf7 {[%clk 0:01:33]} 23. h6 {[%clk 0:02:11]}  Kxf6 {[%clk 0:01:26]} 24. h7 {[%clk 0:02:11]} 1-0


[Site "https://www.chess.com"]

[Event "Titled Tuesday Blitz May 4 2021"]
[White "Kraemer, Martin"]
[Black "Vypkhaniuk, Ihor"]
[WhiteFideId "4671910"]
[BlackFideId "14112256"]
[WhiteElo "2482"]
[BlackElo "2368"]
[Result "1-0"]
[Round "03"]
[TimeControl "180+1"]
[Date "2021.05.04"]
[WhiteClock "0:01:06"]
[BlackClock "0:00:03"]

1. d4 {[%clk 0:02:59]}  Nf6 {[%clk 0:02:59]} 2. c4 {[%clk 0:02:58]}  e6 {[%clk 0:02:59]} 3. Nc3 {[%clk 0:02:58]}  Bb4 {[%clk 0:02:59]} 4. e3 {[%clk 0:02:58]}  O-O {[%clk 0:02:57]} 5. Bd3 {[%clk 0:02:59]}  c5 {[%clk 0:02:50]} 6. Nf3 {[%clk 0:02:59]}  b6 {[%clk 0:02:40]} 7. O-O {[%clk 0:02:59]}  Bb7 {[%clk 0:02:36]} 8. a3 {[%clk 0:02:59]}  Bxc3 {[%clk 0:02:34]} 9. bxc3 {[%clk 0:03:00]}  Be4 {[%clk 0:02:15]} 10. Be2 {[%clk 0:02:59]}  Qc8 {[%clk 0:02:04]} 11. Nd2 {[%clk 0:02:57]}  Bb7 {[%clk 0:01:58]} 12. f3 {[%clk 0:02:54]}  d5 {[%clk 0:01:55]} 13. Re1 {[%clk 0:02:40]}  Nc6 {[%clk 0:01:49]} 14. Bb2 {[%clk 0:02:33]}  Na5 {[%clk 0:01:44]} 15. cxd5 {[%clk 0:02:29]}  exd5 {[%clk 0:01:41]} 16. Bd3 {[%clk 0:02:25]}  Ba6 {[%clk 0:01:38]} 17. Bc2 {[%clk 0:02:26]}  cxd4 {[%clk 0:01:06]} 18. cxd4 {[%clk 0:02:24]}  Ne8 {[%clk 0:01:00]} 19. Rc1 {[%clk 0:02:19]}  Qd7 {[%clk 0:00:55]} 20. Bc3 {[%clk 0:02:10]}  Nd6 {[%clk 0:00:44]} 21. Bxa5 {[%clk 0:02:10]}  bxa5 {[%clk 0:00:45]} 22. Nb3 {[%clk 0:02:11]}  Nb7 {[%clk 0:00:36]} 23. Bb1 {[%clk 0:01:38]}  a4 {[%clk 0:00:30]} 24. Nc5 {[%clk 0:01:37]}  Nxc5 {[%clk 0:00:30]} 25. dxc5 {[%clk 0:01:24]}  Qc6 {[%clk 0:00:17]} 26. Ba2 {[%clk 0:01:16]}  Rfd8 {[%clk 0:00:11]} 27. Qd4 {[%clk 0:01:16]}  Rab8 {[%clk 0:00:10]} 28. Red1 {[%clk 0:01:15]}  Bb7 {[%clk 0:00:06]} 29. e4 {[%clk 0:01:10]}  Qh6 {[%clk 0:00:03]} 30. exd5 {[%clk 0:01:06]} 1-0


[Site "https://www.chess.com"]

[Event "Titled Tuesday Blitz May 4 2021"]
[White "Kriti Mayur Patel"]
[Black "Davtyan, David Arm."]
[WhiteFideId "35061780"]
[BlackFideId "13310046"]
[WhiteElo "1212"]
[BlackElo "2028"]
[Result "0-1"]
[Round "03"]
[TimeControl "180+1"]
[Date "2021.05.04"]
[WhiteClock "0:01:59"]
[BlackClock "0:01:32"]

1. e4 {[%clk 0:03:00]}  c5 {[%clk 0:02:59]} 2. d4 {[%clk 0:03:00]}  cxd4 {[%clk 0:02:59]} 3. c3 {[%clk 0:03:00]}  d3 {[%clk 0:02:53]} 4. Bxd3 {[%clk 0:02:59]}  g6 {[%clk 0:02:53]} 5. c4 {[%clk 0:02:59]}  Bg7 {[%clk 0:02:53]} 6. Nc3 {[%clk 0:02:59]}  d6 {[%clk 0:02:53]} 7. Nf3 {[%clk 0:02:59]}  Nc6 {[%clk 0:02:53]} 8. O-O {[%clk 0:02:59]}  Nf6 {[%clk 0:02:53]} 9. Qe2 {[%clk 0:02:58]}  O-O {[%clk 0:02:53]} 10. Rd1 {[%clk 0:02:58]}  Bg4 {[%clk 0:02:50]} 11. h3 {[%clk 0:02:57]}  Nd4 {[%clk 0:02:50]} 12. Qe3 {[%clk 0:02:52]}  Nxf3+ {[%clk 0:02:49]} 13. gxf3 {[%clk 0:02:51]}  Bxh3 {[%clk 0:02:49]} 14. Kh2 {[%clk 0:02:51]}  Be6 {[%clk 0:02:45]} 15. Rg1 {[%clk 0:02:47]}  Rc8 {[%clk 0:02:44]} 16. Nd5 {[%clk 0:02:40]}  Nh5 {[%clk 0:02:33]} 17. Qg5 {[%clk 0:02:29]}  Bxd5 {[%clk 0:01:53]} 18. cxd5 {[%clk 0:02:24]}  e5 {[%clk 0:01:47]} 19. Qg4 {[%clk 0:02:18]}  Nf4 {[%clk 0:01:34]} 20. Bxf4 {[%clk 0:02:13]}  exf4 {[%clk 0:01:35]} 21. Qxf4 {[%clk 0:02:13]}  Be5 {[%clk 0:01:34]} 22. Qg3 {[%clk 0:02:05]}  Bxg3+ {[%clk 0:01:33]} 23. fxg3 {[%clk 0:02:06]}  Qf6 {[%clk 0:01:33]} 24. Rae1 {[%clk 0:02:02]}  Qxf3 {[%clk 0:01:32]} 25. Bb5 {[%clk 0:02:01]}  Rc2+ {[%clk 0:01:32]} 26. Kh3 {[%clk 0:01:59]}  Qh5# {[%clk 0:01:32]} 0-1


[Site "https://www.chess.com"]

[Event "Titled Tuesday Blitz May 4 2021"]
[White "Kwon, Sehyun"]
[Black "Shirazi, Kamran"]
[WhiteFideId "13203088"]
[BlackFideId "2000733"]
[WhiteElo "1778"]
[BlackElo "2317"]
[Result "0-1"]
[Round "03"]
[TimeControl "180+1"]
[Date "2021.05.04"]
[WhiteClock "0:00:02"]
[BlackClock "0:00:38"]

1. e4 {[%clk 0:03:00]}  d5 {[%clk 0:02:58]} 2. exd5 {[%clk 0:03:00]}  c6 {[%clk 0:02:58]} 3. c4 {[%clk 0:03:00]}  cxd5 {[%clk 0:02:53]} 4. cxd5 {[%clk 0:03:01]}  Nf6 {[%clk 0:02:53]} 5. Nc3 {[%clk 0:03:01]}  Nxd5 {[%clk 0:02:52]} 6. Nf3 {[%clk 0:03:01]}  Nc7 {[%clk 0:02:49]} 7. d4 {[%clk 0:03:02]}  g6 {[%clk 0:02:42]} 8. Bc4 {[%clk 0:03:01]}  Bg7 {[%clk 0:02:42]} 9. O-O {[%clk 0:03:02]}  O-O {[%clk 0:02:42]} 10. h3 {[%clk 0:03:02]}  Nc6 {[%clk 0:02:42]} 11. Be3 {[%clk 0:03:02]}  e6 {[%clk 0:02:17]} 12. Rc1 {[%clk 0:03:01]}  a6 {[%clk 0:02:17]} 13. a3 {[%clk 0:02:58]}  b5 {[%clk 0:02:16]} 14. Ba2 {[%clk 0:02:59]}  Bb7 {[%clk 0:02:16]} 15. Ne4 {[%clk 0:01:48]}  Nd5 {[%clk 0:01:40]} 16. Nc5 {[%clk 0:01:46]}  Bc8 {[%clk 0:01:38]} 17. b4 {[%clk 0:01:18]}  h6 {[%clk 0:01:32]} 18. Qd2 {[%clk 0:01:18]}  Nxe3 {[%clk 0:01:31]} 19. fxe3 {[%clk 0:01:18]}  Ne7 {[%clk 0:01:30]} 20. e4 {[%clk 0:01:13]}  Ra7 {[%clk 0:01:27]} 21. Rcd1 {[%clk 0:01:10]}  a5 {[%clk 0:01:26]} 22. d5 {[%clk 0:01:03]}  exd5 {[%clk 0:01:23]} 23. exd5 {[%clk 0:01:03]}  axb4 {[%clk 0:01:23]} 24. axb4 {[%clk 0:01:04]}  Nf5 {[%clk 0:01:19]} 25. Rfe1 {[%clk 0:00:47]}  Nd6 {[%clk 0:01:14]} 26. Ne5 {[%clk 0:00:37]}  Ra3 {[%clk 0:00:44]} 27. Nc6 {[%clk 0:00:32]}  Qh4 {[%clk 0:00:43]} 28. Ne7+ {[%clk 0:00:18]}  Kh7 {[%clk 0:00:43]} 29. Nxc8 {[%clk 0:00:16]}  Rxc8 {[%clk 0:00:42]} 30. Re2 {[%clk 0:00:09]}  Bc3 {[%clk 0:00:39]} 31. Qc1 {[%clk 0:00:02]}  Bxb4 {[%clk 0:00:38]} 0-1


[Site "https://www.chess.com"]

[Event "Titled Tuesday Blitz May 4 2021"]
[White "Langner, Ladislav"]
[Black "Lejean-Anusca, Madalina-Maria"]
[WhiteFideId "300403"]
[BlackFideId "1215396"]
[WhiteElo "2346"]
[BlackElo "2002"]
[Result "1-0"]
[Round "03"]
[TimeControl "180+1"]
[Date "2021.05.04"]
[WhiteClock "0:00:59"]
[BlackClock "0:00:38"]

1. e4 {[%clk 0:03:00]}  c5 {[%clk 0:02:59]} 2. d4 {[%clk 0:03:00]}  cxd4 {[%clk 0:02:59]} 3. c3 {[%clk 0:03:01]}  dxc3 {[%clk 0:02:58]} 4. Nxc3 {[%clk 0:03:02]}  Nc6 {[%clk 0:02:58]} 5. Nf3 {[%clk 0:03:03]}  e6 {[%clk 0:02:57]} 6. Bf4 {[%clk 0:03:02]}  d6 {[%clk 0:02:57]} 7. Qd2 {[%clk 0:03:01]}  Nf6 {[%clk 0:02:57]} 8. Rd1 {[%clk 0:02:54]}  e5 {[%clk 0:02:44]} 9. Bg5 {[%clk 0:02:48]}  Be7 {[%clk 0:02:44]} 10. Bxf6 {[%clk 0:02:20]}  gxf6 {[%clk 0:02:29]} 11. Qh6 {[%clk 0:02:17]}  Bf8 {[%clk 0:02:26]} 12. Qh5 {[%clk 0:02:13]}  Be6 {[%clk 0:02:22]} 13. Bb5 {[%clk 0:01:52]}  a6 {[%clk 0:02:20]} 14. Bxc6+ {[%clk 0:01:51]}  bxc6 {[%clk 0:02:21]} 15. O-O {[%clk 0:01:51]}  Be7 {[%clk 0:02:17]} 16. Nh4 {[%clk 0:01:49]}  Qd7 {[%clk 0:02:12]} 17. Nf5 {[%clk 0:01:46]}  Bxf5 {[%clk 0:01:59]} 18. exf5 {[%clk 0:01:44]}  d5 {[%clk 0:01:54]} 19. f4 {[%clk 0:01:32]}  e4 {[%clk 0:01:46]} 20. Nxe4 {[%clk 0:01:32]}  Qa7+ {[%clk 0:01:38]} 21. Nf2 {[%clk 0:01:20]}  Bc5 {[%clk 0:01:23]} 22. Rde1+ {[%clk 0:01:15]}  Kd8 {[%clk 0:01:11]} 23. Qh4 {[%clk 0:01:11]}  Bd4 {[%clk 0:01:02]} 24. Kh1 {[%clk 0:01:08]}  Bxf2 {[%clk 0:00:58]} 25. Rxf2 {[%clk 0:01:07]}  Kd7 {[%clk 0:00:47]} 26. Qxf6 {[%clk 0:01:01]}  Qxf2 {[%clk 0:00:42]} 27. Re7+ {[%clk 0:01:00]}  Kc8 {[%clk 0:00:38]} 28. Qxh8# {[%clk 0:00:59]} 1-0


[Site "https://www.chess.com"]

[Event "Titled Tuesday Blitz May 4 2021"]
[White "Lazavik, Denis"]
[Black "Schmakel, Sam"]
[WhiteFideId "13515110"]
[BlackFideId "2039311"]
[WhiteElo "2828"]
[BlackElo "2605"]
[Result "1-0"]
[Round "03"]
[TimeControl "180+1"]
[Date "2021.05.04"]
[WhiteClock "0:00:23"]
[BlackClock "0:00:17"]

1. d4 {[%clk 0:03:00]}  f5 {[%clk 0:03:00]} 2. Nc3 {[%clk 0:02:59]}  Nf6 {[%clk 0:03:00]} 3. Bg5 {[%clk 0:02:58]}  d5 {[%clk 0:03:01]} 4. e3 {[%clk 0:02:57]}  e6 {[%clk 0:02:58]} 5. Bd3 {[%clk 0:02:57]}  c5 {[%clk 0:02:57]} 6. dxc5 {[%clk 0:02:45]}  Nbd7 {[%clk 0:02:44]} 7. Nf3 {[%clk 0:02:31]}  Nxc5 {[%clk 0:02:43]} 8. O-O {[%clk 0:02:26]}  Bd7 {[%clk 0:02:27]} 9. Ne2 {[%clk 0:02:21]}  Rc8 {[%clk 0:02:23]} 10. Rc1 {[%clk 0:02:00]}  b5 {[%clk 0:02:23]} 11. Ned4 {[%clk 0:01:42]}  a6 {[%clk 0:02:20]} 12. Ne5 {[%clk 0:01:41]}  Bd6 {[%clk 0:02:05]} 13. Bxf6 {[%clk 0:01:23]}  Qxf6 {[%clk 0:02:01]} 14. Nxd7 {[%clk 0:01:23]}  Kxd7 {[%clk 0:01:27]} 15. Ra1 {[%clk 0:01:01]}  Ke7 {[%clk 0:01:01]} 16. c3 {[%clk 0:00:49]}  g6 {[%clk 0:00:53]} 17. Bc2 {[%clk 0:00:48]}  e5 {[%clk 0:00:42]} 18. Ne2 {[%clk 0:00:43]}  Rhd8 {[%clk 0:00:42]} 19. a4 {[%clk 0:00:33]}  Bb8 {[%clk 0:00:17]} 20. axb5 {[%clk 0:00:33]}  axb5 {[%clk 0:00:18]} 21. b4 {[%clk 0:00:24]}  Rc6 {[%clk 0:00:17]} 22. bxc5 {[%clk 0:00:23]} 1-0


[Site "https://www.chess.com"]